Workbook

Sheet 2016
A1: к. дня | B1: 1$=рубль | C1: приход | D1: Наименование | E1: S/N | F1: Продано Кол-во | G1: Закупочная цена | H1: Сумма опт | I1: Розничная цена | K1: Сумма розницы | M1: Доход | N1: Отдали долг | P1: Оплочено | Q1: Сумма остатка в долгах | R1: Расход | T1: В долг | V1: Имя
A2: Дата | C2: Тип движения (п.р.д) | I2: (рубль) | J2: (долар) | K2: (рубль) | L2: (долар) | N2: (рубль) | O2: (долар) | R2: (рубль) | S2: (долар) | T2: (рубль) | U2: (долар)
A3: январь
A4: 2016-01-03 | B4: 76 | C4: приход | D4: Масло моторное синтетическое "CITY PRO W LONGLIFE III 5W-30", 20л | F4: 12 | G4: 15000 | H4: =F4*G4 -> 180000 | I4: 16600 | J4: =I4/B4 -> 218.4210526 | K4: =I4*F4 -> 199200 | L4: =J4*F4 -> 2621.052632 | M4: =K4-H4 -> 19200 | P4: 199200 | Q4: =K4-P4 -> 0
C5: приход | D5: Масло моторное минеральное "Rotella T1 30 30", 18.9л | F5: 8 | G5: 6500 | H5: =F5*G5 -> 52000 | I5: 7600 | J5: =I5/B4 -> 100 | K5: =I5*F5 -> 60800 | L5: =J5*F5 -> 800 | M5: =K5-H5 -> 8800 | Q5: =K5-P5 -> 60800
C6: приход | D6: Масло моторное синтетическое "4-Cycle 10W-40", 0.946л | E6: 14678 | F6: 1 | G6: 720 | H6: =F6*G6 -> 720 | I6: 850 | J6: =I6/B4 -> 11.18421053 | K6: =I6*F6 -> 850 | L6: 11.18421053 | M6: =K6-H6 -> 130 | Q6: =K6-P6 -> 850
C7: расход | Q7: =L7-P7 -> 0 | R7: 8000
A8: к. дня | F8: =SUM(F4:F7) -> 21 | H8: =SUM(H4:H7) -> 232720 | K8: =SUM(K4:K7) -> 260850 | M8: =SUM(M4:M7) -> 28130 | P8: =SUM(P4:P7) -> 199200
A9: 2016-01-04 | B9: 76 | C9: расход | R9: 40 | S9: =R9/B9 -> 0.5263157895
